Cogmind - Beta 13 @@@ ROGUE MODE // 2024.04.13 @ 11:00:17 Player: zoefiri Result: Destroyed by H-55 Commando with Gauss Rifle Performance ------------- Evolutions (1) 500 Regions Visited (6) 1200 Robots Destroyed (73) 365 Value Destroyed (1664) 1664 Prototype IDs (27) 540 Alien Tech Used (0) 0 Bonus (486) 486 TOTAL SCORE: 4755 Bonus ------- High Alert Combat Kills 140 Follower Combat Kills 46 Aligned with FarCom 300 Cogmind --------- Core Integrity 0/400 Matter 225/300 Energy 58/100 System Corruption 2% Temperature Cool (0) Movement Rolling (95) Ox1 Location -8/Mines Parts ------- > --- POWER (1) -------- (None) > --- PROPULSION (3) --- Wheel Wheel > --- UTILITY (3) ------ Medium Storage Unit Medium Armor Plating Shield Generator > --- WEAPON (2) ------- Light Cannon (fused) Mini Grenade Launcher > --- INVENTORY (10) --- Light Nuclear Core Wheel Heat Sink Small Storage Unit Hacking Suite Bomb Drone Bay (15/16) Supersonic Drone Bay (1/1) Medium Laser Improved Light Cannon Peak State ------------ > --- POWER ------------ Ion Engine > --- PROPULSION ------- Aluminum Leg Aluminum Leg > --- UTILITY ---------- Bomb Drone Bay > --- WEAPON ----------- (None) > --- INVENTORY -------- Light Nuclear Core Heat Sink Terrain Scanner [Rating: 17] Favorites ----------- Power Ion Engine Engine Ion Engine Power Core Light Nuclear Core Propulsion Wheel Treads Light Treads Leg Aluminum Leg Wheel Wheel Utility Medium Storage Unit Device Terrain Scanner Storage Medium Storage Unit Protection Hardened Light Armor Plating Weapon Light Cannon Energy Gun Medium Laser Energy Cannon Advanced Beam Cannon Ballistic Gun Assault Rifle Ballistic Cannon Light Cannon Launcher Mini Grenade Launcher Build | -11 -10 -10 -9 -9 -9 -8 ------- Run | Yrd Mat Min Mat Min Exi Min Slots Evolved 2 | . . . 2 . . . Power . | . . . . . . . Propulsion 1 | . . . 1 . . . Utility 1 | . . . 1 . . . Weapon . | . . . . . . . Parts Attached 54 | 6 6 10 30 2 . . Power 9 | 1 2 1 5 . . . Engine 8 | 1 1 1 5 . . . Core 1 | . 1 . . . . . Reactor . | . . . . . . . Propulsion 14 | 2 2 3 7 . . . Treads 3 | 2 . . 1 . . . Leg 6 | . 2 3 1 . . . Wheel 5 | . . . 5 . . . Hover . | . . . . . . . Flight . | . . . . . . . Utility 13 | 1 1 3 7 1 . . Device 6 | . 1 1 3 1 . . Storage 3 | 1 . 1 1 . . . Processor . | . . . . . . . Hackware . | . . . . . . . Protection 4 | . . 1 3 . . . Artifact . | . . . . . . . Weapon 18 | 2 1 3 11 1 . . Energy Gun 9 | 2 1 1 5 . . . Energy Cannon 1 | . . . 1 . . . Ballistic Gun 1 | . . 1 . . . . Ballistic Cannon 5 | . . . 5 . . . Launcher 2 | . . 1 . 1 . . Special Weapon . | . . . . . . . Impact Weapon . | . . . . . . . Slashing Weapon . | . . . . . . . Piercing Weapon . | . . . . . . . Special Melee Weapon . | . . . . . . . Unidentified Prototypes 4 | . . 1 3 . . . Parts Lost 22 | . . 8 12 1 . 1 Power 3 | . . 1 1 . . 1 Propulsion 8 | . . 2 5 1 . . Utility 3 | . . 1 2 . . . Weapon 8 | . . 4 4 . . . Highest Loss Streak 7 | . . 7 4 1 . 1 To Critical Strikes . | . . . . . . . Average Slot Usage (%) 82 | . 96 59 78 89 88 82 Engine 11 | . 14 11 10 11 11 5 Treads 1 | . 3 . . . . . Leg 10 | . 24 16 7 . . . Wheel 10 | . . . 12 22 22 22 Device 6 | . 10 1 4 11 11 11 Storage 12 | . 14 13 11 11 11 11 Protection 6 | . . 1 10 11 11 11 Energy Gun 11 | . 28 3 10 . . . Ballistic Cannon 7 | . . . 9 18 11 11 Launcher 2 | . . 9 . 3 11 11 Naked Turns . | . . . . . . . Heaviest Build 37 | 13 16 13 37 29 26 26 Greatest Support 40 | 40 40 20 30 30 20 20 Greatest Overweight (x) 9 | . 4 4 9 1 1 1 Average Overweight (x) . | . . . . . 1 1 Largest Inventory Capacity 10 | 8 8 8 10 10 10 10 Average Capacity 9 | 6 8 7 9 10 10 10 Most Carried 10 | 2 8 8 10 10 10 10 Average Carried 7 | 1 4 7 8 9 9 10 Final Capacity 10 | 8 8 8 10 10 10 10 Final Carried 10 | 2 8 7 10 9 10 10 Class Distribution -------------------- 88% | Mutant 11% | Scavenger-Mutant Dominant Class ---------------- Mutant | -10/Materials Mutant | -10/Mines Mutant | -9/Materials Mutant | -9/Mines Mutant | -9/Exiles Mutant | -8/Mines Resources | -11 -10 -10 -9 -9 -9 -8 ----------- Run | Yrd Mat Min Mat Min Exi Min Matter Collected 1052 | 107 213 148 555 29 . . Remotely . | . . . . . . . Salvage Created 2069 | . 483 233 1342 11 . . Parts 120 | . 24 13 80 3 . . Haulers Intercepted 8 | . 2 . 6 . . . Recyclers Shooed . | . . . . . . . Parts Field Recycled . | . . . . . . . Retrieved Matter . | . . . . . . . Parts Self-Destructed . | . . . . . . . Prevented . | . . . . . . . Kills | -11 -10 -10 -9 -9 -9 -8 ------- Run | Yrd Mat Min Mat Min Exi Min Combat Hostiles Destroyed 48 | . 7 8 30 3 . . Guns 20 | . 7 2 11 . . . Cannons 15 | . . . 15 . . . AOE 11 | . . 6 2 3 . . Classes Destroyed 10 | . 5 2 3 . . . Worker 3 | . 1 . 2 . . . Builder 2 | . . . 2 . . . Tunneler 1 | . . 1 . . . . Hauler 8 | . 2 . 6 . . . Recycler 1 | . . . 1 . . . Operator 5 | . 2 . 3 . . . Watcher 5 | . 2 . 3 . . . Swarmer 17 | . . 2 12 3 . . Grunt 24 | . 7 6 11 . . . Sentry 7 | . . . 7 . . . Best Kill Streak 6 | . 4 3 6 3 . . Combat Bots Only 6 | . 3 2 6 3 . . Max Kills in Single Turn 2 | . 1 2 2 2 . . Gunslinging . | . . . . . . . Exploded 2 | . . 2 1 2 . . Melee . | . . . . . . . Uniques/NPCs Destroyed . | . . . . . . . Combat | -11 -10 -10 -9 -9 -9 -8 -------- Run | Yrd Mat Min Mat Min Exi Min Hostile Shots Fired 269 | . 31 77 147 5 . 9 Missed 58 | . 10 20 25 1 . 2 Damage Taken 3059 | . 263 775 1834 107 . 80 Core 643 | . 32 207 386 4 . 14 Absorbed by Shields 50 | . . . 4 15 . 31 Core Remaining (%) 52 | 100 . 4 . . . . Volleys Fired 198 | . 58 24 107 4 . 5 Largest 2 | . 2 2 2 2 . 2 Hottest 115 | . 115 115 112 74 . 65 Shots Fired 354 | . 114 36 192 6 . 6 Gun 243 | . 114 29 100 . . . Cannon 101 | . . . 92 4 . 5 Launcher 10 | . . 7 . 2 . 1 Special . | . . . . . . . Kinetic 85 | . . 6 70 4 . 5 Thermal 218 | . 114 23 81 . . . Explosive 10 | . . 7 . 2 . 1 Electromagnetic 41 | . . . 41 . . . Robot Hit Streak 19 | . 9 19 12 1 . 1 Robot Miss Streak 5 | . 4 4 4 3 . 5 Penetration Max . | . . . . . . . Secondary Targets 2 | . . 2 . . . . Max Gunslinging Chain 1 | . . 1 . . . . Shots Hit Robots 224 | . 66 24 132 1 . 1 Core Hits 108 | . 28 16 59 5 . . Critical Kills . | . . . . . . . Critical Parts Destroyed . | . . . . . . . Critical Strikes 13 | . 4 1 8 . . . Burn 10 | . 4 1 5 . . . Blast 3 | . . . 3 . . . Melee Attacks . | . . . . . . . Impact . | . . . . . . . Slashing . | . . . . . . . Piercing . | . . . . . . . Sneak Attacks . | . . . . . . . Combat Hostiles . | . . . . . . . Follow-up Attacks . | . . . . . . . Damage Inflicted 4675 | . 784 681 2899 275 . 36 Guns 2156 | . 783 320 1053 . . . Cannons 1265 | . . . 1233 20 . 12 Explosions 1091 | . . 357 527 183 . 24 Melee . | . . . . . . . Ramming 163 | . 1 4 86 72 . . Kinetic 1045 | . . 65 948 20 . 12 Thermal 2167 | . 783 255 1129 . . . Explosive 863 | . . 357 299 183 . 24 Electromagnetic 437 | . . . 437 . . . Impact . | . . . . . . . Slashing . | . . . . . . . Piercing . | . . . . . . . Highest Corruption 2 | . . . 2 2 2 2 Average Corruption 2 | . . . 2 2 2 2 Corruption Purged . | . . . . . . . Corruption Blocked . | . . . . . . . Effects 32 | . . . 17 8 6 1 Message Errors 8 | . . . 5 . 3 . Matter Fused 9 | . . . 5 2 1 1 Heat Flow Errors 2 | . . . 1 1 . . Energy Discharges 4 | . . . 1 2 1 . Parts Fused 1 | . . . 1 . . . Data Loss (minor) 6 | . . . 3 2 1 . Data Loss (major) 1 | . . . 1 . . . Alerts 1 | . . . . 1 . . Overload Shots . | . . . . . . . Overflow Damage 176 | . . 4 122 50 . . Projectiles 7 | . . . 7 . . . Explosions 162 | . . 4 108 50 . . Melee 7 | . . . 7 . . . Knockbacks 11 | . . . 10 1 . . Impact . | . . . . . . . Kinetic 11 | . . . 10 1 . . Secondary . | . . . . . . . Self-Inflicted Damage 498 | . . 59 405 34 . . Shots 10 | . . 3 7 . . . Rammed 24 | . . . 13 11 . . Targets Rammed 28 | . 1 2 14 11 . . Kicked 4 | . 1 2 1 . . . Crushed . | . . . . . . . Highest Temperature 554 | . 249 554 405 100 . . Average Temperature 123 | . 80 348 110 31 . . Received Heat Transfer 1029 | . 144 432 453 . . . Effects 20 | . 1 11 8 . . . Shutdowns 4 | . . 2 2 . . . Energy Bleed 2 | . 1 1 . . . . Interference 7 | . . 3 4 . . . Short Circuit 2 | . . 2 . . . . Damage (minor) 4 | . . 2 2 . . . Damage (major) 1 | . . 1 . . . . Siege Activations . | . . . . . . . Robots Corrupted . | . . . . . . . Combat Hostiles . | . . . . . . . Parts Fried 2 | . . . 2 . . . Impact Corruptions 2 | . . . 2 . . . Robots Melted 2 | . . . 2 . . . Combat Hostiles 2 | . . . 2 . . . Parts Melted 16 | . 4 4 8 . . . Heat Transferred 5798 | . 2403 703 2692 . . . Parts Sabotaged . | . . . . . . . Parts Stolen . | . . . . . . . Parts Stripped . | . . . . . . . Power Chain Reactions 5 | . . . 5 . . . Alert | -11 -10 -10 -9 -9 -9 -8 ------- Run | Yrd Mat Min Mat Min Exi Min Peak Influence 877 | . 219 219 877 445 . 10 Initial 342 | . . 49 82 342 . . Average 291 | . 94 117 458 323 . . Maximum Alert Level 3 | . 1 1 3 2 . . Low Security (%) 36 | 100 79 79 9 . . 100 Level 1 36 | . 20 20 35 85 . . Level 2 14 | . . . 28 14 . . Level 3 11 | . . . 26 . . . Level 4 . | . . . . . . . Level 5 . | . . . . . . . High Security . | . . . . . . . Max Security . | . . . . . . . Squads Dispatched 7 | . 2 . 5 . . . Investigation . | . . . . . . . Extermination . | . . . . . . . Reinforcement 7 | . 2 . 5 . . . Assault . | . . . . . . . Garrison . | . . . . . . . Intercept . | . . . . . . . Searches Triggered . | . . . . . . . Construction Impeded . | . . . . . . . Haulers Reinforced . | . . . . . . . Active Scanning Responses . | . . . . . . . Cargo Convoy Interrupts . | . . . . . . . Stealth | -11 -10 -10 -9 -9 -9 -8 --------- Run | Yrd Mat Min Mat Min Exi Min Distress Signals 6 | . 1 . 5 . . . Communications Jammed . | . . . . . . . Distress Signals . | . . . . . . . Times Spotted 91 | . 18 9 58 5 . 1 Peak Tracking Total 8 | . 4 3 8 4 . 1 Tactical Retreats 7 | . 1 . 6 . . . Traps | -11 -10 -10 -9 -9 -9 -8 ------- Run | Yrd Mat Min Mat Min Exi Min Traps Triggered . | . . . . . . . Indirectly . | . . . . . . . Trap Hack Attempts . | . . . . . . . Triggered . | . . . . . . . Disarmed . | . . . . . . . Reprogrammed . | . . . . . . . Reused . | . . . . . . . Traps Extracted . | . . . . . . . Installed . | . . . . . . . Triggered . | . . . . . . . Machines | -11 -10 -10 -9 -9 -9 -8 ---------- Run | Yrd Mat Min Mat Min Exi Min Machines Disabled 7 | . . . 6 1 . . Max in Single Turn 3 | . . . 3 1 . . Machines Repaired . | . . . . . . . Machines Dismantled . | . . . . . . . Machines Sabotaged . | . . . . . . . Overloaded Fab Kills . | . . . . . . . Hacking | -11 -10 -10 -9 -9 -9 -8 --------- Run | Yrd Mat Min Mat Min Exi Min Machines Accessed 3 | . . 1 1 . 1 . Terminals . | . . . . . . . Fabricators . | . . . . . . . Repair Stations 1 | . . . 1 . . . Recycling Units . | . . . . . . . Scanalyzers . | . . . . . . . Garrison Access . | . . . . . . . Total Hacks 4 | . . 1 2 . 1 . Successful 3 | . . 1 1 . 1 . Failed 1 | . . . 1 . . . Catastrophic . | . . . . . . . Database Lockouts . | . . . . . . . Manual 1 | . . . . . 1 . Terminals . | . . . . . . . Fabricators . | . . . . . . . Repair Stations 2 | . . . 2 . . . Recycling Units . | . . . . . . . Scanalyzers . | . . . . . . . Garrison Access . | . . . . . . . Terminal Hacks 2 | . . 1 . . 1 . Open Door 1 | . . 1 . . . . Derelict Proto ID Bank 1 | . . . . . 1 . Fabricator Hacks . | . . . . . . . Repair Station Hacks 1 | . . . 1 . . . Scan Component 1 | . . . 1 . . . Recycling Unit Hacks . | . . . . . . . Scanalyzer . | . . . . . . . Garrison Access Hacks . | . . . . . . . Unauthorized Hacks . | . . . . . . . Terminals . | . . . . . . . Fabricators . | . . . . . . . Repair Stations . | . . . . . . . Recycling Units . | . . . . . . . Scanalyzers . | . . . . . . . Garrison Access . | . . . . . . . Data Cores Recovered . | . . . . . . . Used . | . . . . . . . Hacking Detections 1 | . . . 1 . . . Full Trace Events . | . . . . . . . Feedback Events . | . . . . . . . Feedback Blocked . | . . . . . . . Robot Schematics Acquired . | . . . . . . . Robots Built . | . . . . . . . Authchips . | . . . . . . . Time . | . . . . . . . Total Robot Build Rating . | . . . . . . . Part Schematics Acquired . | . . . . . . . Parts Built . | . . . . . . . Authchips . | . . . . . . . Time . | . . . . . . . Total Part Build Rating . | . . . . . . . Parts Repaired . | . . . . . . . Time . | . . . . . . . Parts Recycled . | . . . . . . . Recycled Matter . | . . . . . . . Retrieved Matter . | . . . . . . . Retrieved Components . | . . . . . . . Parts Scanalyzed . | . . . . . . . Part Schematics Acquired . | . . . . . . . Parts Damaged . | . . . . . . . Bothacking | -11 -10 -10 -9 -9 -9 -8 ------------ Run | Yrd Mat Min Mat Min Exi Min Used RIF Installer . | . . . . . . . Robots Hacked . | . . . . . . . Non-combat . | . . . . . . . Combat . | . . . . . . . Robot Hacks Applied . | . . . . . . . Relay Couplers Released . | . . . . . . . Fabnet Peak Effective % . | . . . . . . . Robots Rewired . | . . . . . . . Allies Hacked . | . . . . . . . Hacks Repelled . | . . . . . . . Allies | -11 -10 -10 -9 -9 -9 -8 -------- Run | Yrd Mat Min Mat Min Exi Min Total Allies 6 | . . . . 6 . . Largest Group 4 | . . . . 4 2 . Highest-Rated Group 92 | . . . . 92 47 . Highest-Rated Ally 31 | . . . . 31 31 . Total Orders 2 | . . 2 . . . . RETURN 2 | . . 2 . . . . Ally Attacks 8 | . . 1 . 7 . . Total Damage 90 | . . . . 90 . . Kills 2 | . . . . 2 . . Allies Corrupted . | . . . . . . . Allies Melted . | . . . . . . . Intel | -11 -10 -10 -9 -9 -9 -8 ------- Run | Yrd Mat Min Mat Min Exi Min Robot Analysis Total . | . . . . . . . Derelict Logs Recovered 1 | . . . . 1 . . Drone Launches 3 | . . 3 . . . . Drone Recoveries 2 | . . 2 . . . . Exploration | -11 -10 -10 -9 -9 -9 -8 ------------- Run | Yrd Mat Min Mat Min Exi Min Turns Passed 3400 | 73 791 369 1432 475 221 39 Spaces Moved 2253 | 41 475 172 836 474 232 23 Core 17 | 2 1 11 3 . . . Treads 117 | 39 38 . 40 . . . Legs 819 | . 436 161 222 . . . Wheels 1300 | . . . 571 474 232 23 Hover . | . . . . . . . Flight . | . . . . . . . Fastest Speed 50 | 50 120 100 80 80 95 95 Average Speed 115 | 154 123 159 117 93 95 95 Slowest Speed 500 | 160 250 250 500 95 95 95 Overloaded Moves . | . . . . . . . Propulsion Burnouts . | . . . . . . . Robots Hopped . | . . . . . . . Cave-ins Triggered . | . . . . . . . Exploration Rate (%) 48 | 4 57 39 77 90 62 10 Regions Visited 6 Branch Regions 4 Pre-discovered Areas . | . . . . . . . Known Exits Taken . | . . . . . . . Unknown Exits Taken 6 | 1 1 1 1 1 1 . Scrap Searched 3 | . . 1 . 2 . . Spaces Dug 9 | . . 9 . . . . Terrain Destroyed 144 | . . 44 67 23 . 10 Melee . | . . . . . . . Projectile 3 | . . . 3 . . . AOE 141 | . . 44 64 23 . 10 Terrain Rammed . | . . . . . . . Walls Destroyed . | . . . . . . . Machines Disabled . | . . . . . . . Actions | -11 -10 -10 -9 -9 -9 -8 --------- Run | Yrd Mat Min Mat Min Exi Min Total 2697 | 48 562 228 1092 499 232 36 Wait 117 | . 16 13 76 4 . 8 Move 2247 | 40 474 171 835 473 231 23 Hop . | . . . . . . . Pick Up 27 | 2 5 4 13 2 1 . Fast Attach 32 | 6 3 4 19 . . . Attach 11 | . . 3 8 . . . Detach 4 | . . 1 3 . . . Swap 11 | . 3 3 3 2 . . Drop 22 | . 2 3 14 3 . . Fire 198 | . 58 24 107 4 . 5 Melee . | . . . . . . . Ram 24 | . . . 13 11 . . Kick 4 | . 1 2 1 . . . Crush . | . . . . . . . Escape Stasis . | . . . . . . . Rewire . | . . . . . . . Trap . | . . . . . . . Miscellaneous . | . . . . . . . Route ------- -11/Scrapyard -10/Materials -10/Mines -9/Materials (discovered 3 exits: [*Mat x2] / [*Min]) -9/Mines (discovered 3 exits: [*Mat x2] / *Exi) -9/Exiles -8/Mines History --------- Turn | Location | Event 6 | -11/Scrapyard | Discovered new exit (range 15) 74 | -11/Scrapyard | Entered Materials 309 | -10/Materials | Build established: Mutant 582 | -10/Materials | Discovered new exit (range 16) 865 | -10/Materials | Entered Mines 914 | -10/Mines | Core integrity fell below 50% 934 | -10/Mines | Core integrity fell below 20% 964 | -10/Mines | Lost 7 parts (1p2n1u3w) 1025 | -10/Mines | Found the Drone Emporium 1032 | -10/Mines | Found Prototype Device 1164 | -10/Mines | Identified Bomb Drone Bay 1217 | -10/Mines | Discovered new exit (range 15) 1234 | -10/Mines | Entered Materials 1234 | -9/Materials | Evolved 2 slots: Propulsion x1, Utility x1 1803 | -9/Materials | Core integrity fell below 50% 1826 | -9/Materials | Lost 4 parts (1p1n1u1w) 2040 | -9/Materials | Discovered new exit (range 10) 2041 | -9/Materials | Core integrity fell below 20% 2568 | -9/Materials | Discovered new exit (range 5) 2653 | -9/Materials | Discovered new exit (range 12) 2666 | -9/Materials | Entered Mines 2691 | -9/Mines | Assembled infested the area 2700 | -9/Mines | Assisted by bots powering up and referring to "LRC-V3" 2717 | -9/Mines | Met 8R-AWN 2729 | -9/Mines | Met a Derelict bent on vengeance 2757 | -9/Mines | Discovered new exit (range 10) 2841 | -9/Mines | Discovered new exit (range 7) 2845 | -9/Mines | Received a Mining Laser from a helpful Derelict 3137 | -9/Mines | Discovered new exit (range 5) 3141 | -9/Mines | Entered Exiles 3141 | -9/Exiles | Accompanied by 2 allies 3164 | -9/Exiles | Welcomed by 8R-AWN 3171 | -9/Exiles | Led the pair of lost Derelicts to a safe place 3180 | -9/Exiles | Met EX-HEX 3216 | -9/Exiles | Met EX-BIN 3228 | -9/Exiles | Aligned with FarCom system 3229 | -9/Exiles | Given EX-Vault access code 3255 | -9/Exiles | Opened EX-Vault 3265 | -9/Exiles | Found Supersonic Drone Bay 3286 | -9/Exiles | Warned to stay clear of 0b10 Research branches 3316 | -9/Exiles | Met EX-DEC 3352 | -9/Exiles | Discovered new exit (range 10) 3362 | -9/Exiles | Left Exiles lab with Supersonic Drone Bay 3362 | -9/Exiles | Entered Mines 3401 | -8/Mines | Destroyed by H-55 Commando with Gauss Rifle Last Messages --------------- System corrupted: Component data lost. EX-BIN: And don't even think about spreading that code around. We're gonna change it right after you leave. Most certainly not to something like 1234 which I did last time as a little joke and some thief managed to sneak in here and steal a few of HEX's prototypes. EX-DEC: Ah I see we have a visitor. One wrong move in here and I'll invert your atomic chain! EX-DEC: "Oops, I hope HEX didn't hear that..." EXIT=FOUND LOCATION=UNKNOWN GOAL=ESCAPE Receiving FarCom transmissions... System corrupted: Matter fused (-7). Penetrated by Slug. Lgt. Ion Engine destroyed. Slug penetrates Wall. Penetrated by Slug. Map ----- +----------------------------------------------------+ | ??????????????????????????????????????????????? | | ??????????????????????????????????????????????? | | ??????????????????????????????????????????????? | | ??????????????????????????????????????????????? | | ??????????????????????????????????????????????? | | ??????????????????????????????????????????????? | | ??????????????????????????????????????????????? | | ??????????????????????????????????????????????? | | ??????????????????????????????????????????????? | | ??????????????????????????????????????????????? | | ??????????????????????????????????????????????? | | ??????????????????????????????????????????????? | | ??????????????????????????????????????????????? | | ??????????????????????????????????????????????? | | ??????????????????????????????????????????????? | | ??????????????????????????????????????????????? | | ??????????????????????????????????????????????? | | ??????????????????????????????????????????????? | | ??????????????????????????????????????????????? | | ?????###??????????????????????????????????????? | | ????## ##????????????????????????????????????? | | ????# ##??????????####?????????????????????? | | ????# ##????????## ##????????????????????? | | ????# ##??????## ##???????????????????? | | ????# ##??#### ## #######??????????? | | ???## #### @ ?????? | | ???# ## ## ?????? | | ???# ##### #########????????? | | ???## ## ##????# ##????????????????? | | ????##?### """ #?????? #?????????????????? | | ?????????## """ #?????# h #?????????????????? | | ??????????# """ #?????# # ????????????????? | | ??????????# ##?????# ???????????????? | | ??????????## ###??????# ??????????????? | | ???????????#####????????? #?????????????? | | ?????????????????????????# ##? #?????????????? | | ??????????????????????????# #???#?????????????? | | ??????????????????????????? #?????????????????? | | ??????????????????????????? ?????????????????? | | ??????????????????????????? #?????????????????? | | ??????????????????????????????????????????????? | | ??????????????????????????????????????????????? | | ??????????????????????????????????????????????? | | ??????????????????????????????????????????????? | | ??????????????????????????????????????????????? | | ??????????????????????????????????????????????? | | ??????????????????????????????????????????????? | | ??????????????????????????????????????????????? | | ??????????????????????????????????????????????? | | ??????????????????????????????????????????????? | +----------------------------------------------------+ Best States ------------- Heat Dissipation 38 Energy Generation 14 Energy Capacity 280 Matter Stores 300 Matter Capacity 300 Sight Range 16 Terrain Scan Range 14 Terrain Scan Density 10 Armor Coverage 375 Evasion (%) 55 Recoil Reduction 2 Item Schematics ----------------- None Robot Schematics ------------------ None Fabricated ------------ Nothing Alien Tech Used ----------------- None Achievements -------------- Close Call Challenges ------------ None Game ------ Seed ThiefMasterCorpse Manual? 0 Play Time 00:32:21 Cumulative 10.9 hours Start 2024.04.13 @ 10:27:31 End 2024.04.13 @ 11:00:17 Sessions 1 Manual Loads 0 Difficulty Rogue Special Mode None Game No. 19 Rogue 16 Adventurer 0 Explorer 3 Win Type - Total 0 Types 0/0/0/0/0/0/0/0/0 Lore% 13 Gallery% 21 Achievement% 18 Wizard Run 0 Options --------- Layout 1 ASCII 0 Keyboard 0 Movement Arrows Keybinds 0 Fullscreen 0 Font 28/SmallcapsGlow Map View 50x43 Zoom Use 0% Tactical HUD 0 Map Filters NONE Filters NONE Steam 1 RUN: 3fa69e62-da64-4808-a762-3db11958f52c